[Event "Turkish Club Cup 2019"]
[Site "Konya"]
[Date "2019.07.20"]
[Round "7"]
[White "Aydin, Gulenay"]
[Black "Demir, Ugur"]
[Result "1-0"]
[ECO "B00"]
[WhiteElo "1934"]
[BlackElo "1763"]
[Annotator "NA"]
[PlyCount "88"]
[EventDate "2019.07.16"]
[EventType "team-tourn"]
[EventCountry "TUR"]
[SourceTitle "playchess.com"]
[Source "ChessBase"]
[SourceQuality "1"]
[TimeControl "5400+30"]

1. e4 {[%emt 0:00:30]} b6 {[%emt 0:00:30]} 2. d4 {[%emt 0:00:30]} Bb7 {[%emt 0:00:30]} 3. Bd3 {[%emt 0:00:00]} Nf6 {[%emt 0:00:30]} 4. Qe2 {[%emt 0:00:00]} e6 {[%emt 0:00:00]} 5. Nf3 {[%emt 0:00:30]} d5 {[%emt 0:03:00]} 6. e5 {[%emt 0:07:30]} Nfd7 {[%emt 0:00:30]} 7. O-O {[%emt 0:02:30]} c5 {[%emt 0:00:30]} 8. c3 {[%emt 0:00:30]} Nc6 {[%emt 0:00:30]} 9. a3 {[%emt 0:07:30]} Be7 {[%emt 0:04:30]} 10. Nbd2 {[%emt 0:02:30]} g5 {[%emt 0:04:30]} 11. dxc5 {[%emt 0:09:30]} Nxc5 {[%emt 0:06:30]} 12. Bb5 {[%emt 0:02:30]} a6 {[%emt 0:11:30]} 13. Bxc6+ {[%emt 0:02:30]} Bxc6 {[%emt 0:00:30]} 14. Nd4 {[%emt 0:00:30]} Bb7 {[%emt 0:00:30]} 15. Qh5 {[%emt 0:10:30]} Qd7 {[%emt 0:11:30]} 16. N2f3 {[%emt 0:03:30]} Ne4 {[%emt 0:13:30]} 17. Nxg5 {[%emt 0:07:30]} Nxg5 {[%emt 0:02:30]} 18. Bxg5 {[%emt 0:00:00]} O-O-O {[%emt 0:01:30]} 19. Bxe7 {[%emt 0:01:00]} Qxe7 {[%emt 0:00:30]} 20. Qe2 {[%emt 0:07:30]} Rde8 {[%emt 0:04:30]} 21. Rae1 {[%emt 0:04:30]} Kd7 {[%emt 0:02:30]} 22. f4 {[%emt 0:00:30]} f5 {[%emt 0:01:30]} 23. exf6 {[%emt 0:05:30]} Qxf6 {[%emt 0:00:00]} 24. Qf2 {[%emt 0:10:31]} Rhg8 {[%emt 0:05:00]} 25. Re2 {[%emt 0:02:43]} Bc8 {[%emt 0:05:30]} 26. Qf3 {[%emt 0:05:45]} Kc7 {[%emt 0:02:08]} 27. a4 {[%emt 0:01:01]} Rg7 {[%emt 0:02:32]} 28. a5 {[%emt 0:01:04]} bxa5 {[%emt 0:05:26]} 29. Qe3 {[%emt 0:01:04]} Rge7 {[%emt 0:03:57]} 30. Nb3 {[%emt 0:00:42]} e5 {[%emt 0:01:36]} 31. fxe5 {[%emt 0:01:11]} Qb6 {[%emt 0:00:52]} 32. Nd4 {[%emt 0:00:22]} Bg4 {[%emt 0:02:31]} 33. Ree1 {[%emt 0:00:25]} Rxe5 {[%emt 0:03:49]} 34. Qg3 {[%emt 0:00:53]} Qd6 {[%emt 0:00:59]} 35. Rxe5 {[%emt 0:00:22]} Qxe5 {[%emt 0:00:23]} 36. Qxg4 {[%emt 0:00:30]} Qe3+ {[%emt 0:00:38]} 37. Kh1 {[%emt 0:00:08]} Kb6 {[%emt 0:00:31]} 38. Qg3 {[%emt 0:02:57]} Qe7 {[%emt 0:00:27]} 39. h3 {[%emt 0:00:46]} a4 {[%emt 0:00:16]} 40. Qf4 {[%emt 0:00:38]} a3 {[%emt 0:00:51]} 41. Qh6+ {[%emt 0:00:23]} Kb7 {[%emt 0:00:16]} 42. bxa3 {[%emt 0:00:16]} Qe4 {[%emt 0:00:41]} 43. Rf7+ {[%emt 0:00:39]} Re7 {[%emt 0:00:25]} 44. Qc6+ {[%emt 0:00:10]} Ka7 {[%emt 0:01:12]} 1-0

[Event "Turkish Club Cup 2019"]
[Site "Konya"]
[Date "2019.07.20"]
[Round "7"]
[White "Kilic, Eray"]
[Black "Ozcan, Alperen"]
[Result "0-1"]
[ECO "C02"]
[WhiteElo "1931"]
[BlackElo "1568"]
[Annotator "NA"]
[PlyCount "112"]
[EventDate "2019.07.16"]
[EventType "team-tourn"]
[EventCountry "TUR"]
[SourceTitle "playchess.com"]
[Source "ChessBase"]
[SourceQuality "1"]
[TimeControl "5400+30"]

1. e4 {[%emt 0:00:30]} e6 {[%emt 0:00:30]} 2. d4 {[%emt 0:00:00]} d5 {[%emt 0:00:30]} 3. e5 {[%emt 0:00:00]} c5 {[%emt 0:00:30]} 4. c3 {[%emt 0:00:00]} Nc6 {[%emt 0:00:00]} 5. Nf3 {[%emt 0:00:00]} Qb6 {[%emt 0:00:00]} 6. a3 {[%emt 0:00:00]} Nge7 {[%emt 0:00:30]} 7. b4 {[%emt 0:05:00]} cxd4 {[%emt 0:02:30]} 8. cxd4 {[%emt 0:00:30]} Nf5 {[%emt 0:00:00]} 9. Bb2 {[%emt 0:01:30]} Be7 {[%emt 0:02:00]} 10. g3 {[%emt 0:08:30]} O-O {[%emt 0:00:30]} 11. Qd3 {[%emt 0:03:30]} Bd7 {[%emt 0:01:30]} 12. Bg2 {[%emt 0:01:30]} Rac8 {[%emt 0:00:30]} 13. O-O {[%emt 0:00:30]} f6 {[%emt 0:15:30]} 14. g4 {[%emt 0:08:30]} fxe5 {[%emt 0:03:30]} 15. gxf5 {[%emt 0:19:30]} e4 {[%emt 0:00:30]} 16. Qe3 {[%emt 0:00:00]} exf3 {[%emt 0:00:00]} 17. Bh3 {[%emt 0:00:00]} exf5 {[%emt 0:00:00]} 18. Qxf3 {[%emt 0:03:30]} Be6 {[%emt 0:03:30]} 19. Qe3 {[%emt 0:14:30]} Nd8 {[%emt 0:00:30]} 20. Nc3 {[%emt 0:04:30]} Rf6 {[%emt 0:09:30]} 21. f4 {[%emt 0:04:30]} Nc6 {[%emt 0:14:30]} 22. Rad1 {[%emt 0:01:30]} Qd8 {[%emt 0:05:30]} 23. Kh1 {[%emt 0:04:59]} Qd7 {[%emt 0:02:30]} 24. Rg1 {[%emt 0:02:05]} Bf7 {[%emt 0:00:30]} 25. Ne2 {[%emt 0:02:03]} Bg6 {[%emt 0:08:30]} 26. Ng3 {[%emt 0:01:57]} Bf8 {[%emt 0:08:30]} 27. Qf3 {[%emt 0:03:07]} Ne7 {[%emt 0:03:10]} 28. Qd3 {[%emt 0:02:55]} Qd6 {[%emt 0:02:48]} 29. Rgf1 {[%emt 0:01:27]} Rc4 {[%emt 0:04:02]} 30. Rde1 {[%emt 0:01:20]} Kh8 {[%emt 0:04:28]} 31. Re5 {[%emt 0:01:41]} Qd7 {[%emt 0:00:40]} 32. Bg2 {[%emt 0:00:45]} Bf7 {[%emt 0:03:18]} 33. Rfe1 {[%emt 0:00:15]} g6 {[%emt 0:00:26]} 34. Nf1 {[%emt 0:00:28]} Rc8 {[%emt 0:01:13]} 35. b5 {[%emt 0:00:28]} Ng8 {[%emt 0:00:42]} 36. R5e2 {[%emt 0:05:13]} Bd6 {[%emt 0:00:40]} 37. Nd2 {[%emt 0:00:40]} Bxf4 {[%emt 0:00:51]} 38. Nf3 {[%emt 0:00:01]} Be6 {[%emt 0:01:01]} 39. Ne5 {[%emt 0:00:38]} Bxe5 {[%emt 0:01:53]} 40. dxe5 {[%emt 0:00:30]} Rff8 {[%emt 0:00:30]} 41. Rd2 {[%emt 0:00:30]} Ne7 {[%emt 0:00:30]} 42. a4 {[%emt 0:00:35]} Kg8 {[%emt 0:00:00]} 43. Ba3 {[%emt 0:00:17]} Rfe8 {[%emt 0:00:56]} 44. Bd6 {[%emt 0:00:45]} Rcd8 {[%emt 0:01:07]} 45. Rc1 {[%emt 0:00:38]} Rc8 {[%emt 0:00:51]} 46. Rcd1 {[%emt 0:00:05]} Rcd8 {[%emt 0:00:59]} 47. Rc1 {[%emt 0:01:14]} Rc8 {[%emt 0:00:30]} 48. Rcd1 {[%emt 0:00:07]} f4 {[%emt 0:00:44]} 49. h3 {[%emt 0:01:30]} Nf5 {[%emt 0:00:02]} 50. Bxd5 {[%emt 0:00:02]} Kh8 {[%emt 0:00:49]} 51. Bxe6 {[%emt 0:00:53]} Qxe6 {[%emt 0:00:30]} 52. Qf3 {[%emt 0:00:30]} Ne3 {[%emt 0:00:30]} 53. Rg1 {[%emt 0:00:30]} Qf5 {[%emt 0:00:30]} 54. Rd4 {[%emt 0:00:30]} g5 {[%emt 0:00:30]} 55. Qh5 {[%emt 0:00:30]} f3 {[%emt 0:00:30]} 56. Qh6 {[%emt 0:00:21]} f2 {[%emt 0:00:10]} 0-1

[Event "Turkish Club Cup 2019"]
[Site "Konya"]
[Date "2019.07.20"]
[Round "7"]
[White "Sayin, Atakan"]
[Black "Gokcek, Kursat Bugra"]
[Result "0-1"]
[ECO "B12"]
[WhiteElo "1925"]
[BlackElo "2150"]
[Annotator "NA"]
[PlyCount "68"]
[EventDate "2019.07.16"]
[EventType "team-tourn"]
[EventCountry "TUR"]
[SourceTitle "playchess.com"]
[Source "ChessBase"]
[SourceQuality "1"]
[TimeControl "5400+30"]

1. e4 c6 2. d4 d5 3. e5 c5 4. c3 Nc6 5. dxc5 Nxe5 6. Nf3 {[%emt 0:35:00]} Nc6 {[%emt 0:20:00]} 7. b4 {[%emt 0:03:30]} a6 {[%emt 0:04:30]} 8. Be3 {[%emt 0:07:30]} Nf6 {[%emt 0:12:30]} 9. Nbd2 {[%emt 0:06:30]} Ng4 {[%emt 0:10:30]} 10. Bg5 {[%emt 0:02:30]} h6 {[%emt 0:02:30]} 11. Bh4 {[%emt 0:03:30]} g5 {[%emt 0:00:00]} 12. Bg3 {[%emt 0:01:30]} Bg7 {[%emt 0:03:00]} 13. h3 {[%emt 0:05:30]} Nge5 {[%emt 0:07:30]} 14. Nxe5 {[%emt 0:05:30]} Nxe5 {[%emt 0:00:30]} 15. Nb3 {[%emt 0:03:30]} O-O {[%emt 0:09:30]} 16. Bxe5 {[%emt 0:06:09]} Bxe5 {[%emt 0:00:00]} 17. Nd4 {[%emt 0:00:46]} Bg7 {[%emt 0:02:00]} 18. Be2 {[%emt 0:05:13]} e5 {[%emt 0:00:30]} 19. Nb3 {[%emt 0:00:34]} Be6 {[%emt 0:10:44]} 20. O-O {[%emt 0:02:31]} Qd7 {[%emt 0:01:01]} 21. Qd2 {[%emt 0:02:37]} Rad8 {[%emt 0:01:55]} 22. Rad1 {[%emt 0:00:35]} f5 {[%emt 0:01:30]} 23. Na5 {[%emt 0:03:08]} e4 {[%emt 0:03:41]} 24. Nb3 {[%emt 0:01:30]} Be5 {[%emt 0:05:52]} 25. Nd4 {[%emt 0:00:43]} Bf7 {[%emt 0:01:30]} 26. f3 {[%emt 0:01:18]} Bb8 {[%emt 0:01:25]} 27. fxe4 {[%emt 0:01:27]} dxe4 {[%emt 0:01:48]} 28. Rxf5 {[%emt 0:01:01]} Qc7 {[%emt 0:00:24]} 29. Rxg5+ {[%emt 0:01:39]} Kh8 {[%emt 0:00:06]} 30. Rg4 {[%emt 0:01:12]} Qh2+ {[%emt 0:00:21]} 31. Kf2 {[%emt 0:00:00]} Be6+ {[%emt 0:02:04]} 32. Bf3 {[%emt 0:00:14]} Rxf3+ {[%emt 0:00:00]} 33. Nxf3 {[%emt 0:01:10]} Rxd2+ {[%emt 0:00:00]} 34. Rxd2 {[%emt 0:00:04]} exf3 {[%emt 0:00:00]} 0-1

[Event "Turkish Club Cup 2019"]
[Site "Konya"]
[Date "2019.07.20"]
[Round "7"]
[White "Akbas, Umut Ata"]
[Black "Unlu, Alp Bugra"]
[Result "1-0"]
[ECO "E61"]
[WhiteElo "1912"]
[BlackElo "1832"]
[Annotator "NA"]
[PlyCount "89"]
[EventDate "2019.07.16"]
[EventType "team-tourn"]
[EventCountry "TUR"]
[SourceTitle "playchess.com"]
[Source "ChessBase"]
[SourceQuality "1"]
[TimeControl "5400+30"]

1. d4 Nf6 2. c4 g6 3. Nc3 Bg7 4. Nf3 O-O 5. Bg5 h6 6. Bh4 d6 7. e3 Nbd7 8. Be2 c6 9. O-O e5 10. Qc2 Qe7 {[%emt 0:29:00]} 11. Rad1 {[%emt 0:33:30]} Nb6 {[%emt 0:15:30]} 12. c5 {[%emt 0:05:30]} exd4 {[%emt 0:10:30]} 13. cxd6 {[%emt 0:02:30]} Qxd6 {[%emt 0:00:30]} 14. Rxd4 {[%emt 0:01:30]} Nfd5 {[%emt 0:02:30]} 15. Rd2 {[%emt 0:05:30]} Qb4 {[%emt 0:06:30]} 16. a3 {[%emt 0:05:30]} Qa5 {[%emt 0:02:30]} 17. Nxd5 {[%emt 0:01:30]} Nxd5 {[%emt 0:01:30]} 18. Rfd1 {[%emt 0:01:30]} Re8 {[%emt 0:09:30]} 19. Nd4 {[%emt 0:02:30]} Nc7 {[%emt 0:10:29]} 20. Bc4 {[%emt 0:04:30]} Ne6 {[%emt 0:05:01]} 21. Nxe6 {[%emt 0:02:30]} Bxe6 {[%emt 0:00:06]} 22. Bxe6 {[%emt 0:00:00]} Rxe6 {[%emt 0:00:08]} 23. Rd7 {[%emt 0:00:00]} Qb6 {[%emt 0:00:54]} 24. b4 {[%emt 0:00:30]} Rae8 {[%emt 0:01:03]} 25. Qc4 {[%emt 0:02:30]} Bf6 {[%emt 0:05:47]} 26. Bxf6 {[%emt 0:12:30]} Rxf6 {[%emt 0:00:05]} 27. h4 {[%emt 0:00:00]} Rf5 {[%emt 0:01:22]} 28. R1d6 {[%emt 0:05:05]} Kg7 {[%emt 0:00:29]} 29. Qg4 {[%emt 0:00:28]} Kf8 {[%emt 0:00:35]} 30. Rxg6 {[%emt 0:01:29]} fxg6 {[%emt 0:00:15]} 31. Qxg6 {[%emt 0:00:00]} Ree5 {[%emt 0:00:21]} 32. Qg7+ {[%emt 0:02:00]} Ke8 {[%emt 0:00:33]} 33. Rxb7 {[%emt 0:00:04]} Qxb7 {[%emt 0:00:20]} 34. Qxb7 {[%emt 0:00:06]} Re6 {[%emt 0:00:54]} 35. Qxa7 {[%emt 0:00:10]} Rd5 {[%emt 0:00:34]} 36. a4 {[%emt 0:00:29]} Rd1+ {[%emt 0:00:55]} 37. Kh2 {[%emt 0:00:30]} Rd2 {[%emt 0:00:00]} 38. Qb8+ {[%emt 0:04:11]} Kd7 {[%emt 0:01:02]} 39. Qf4 {[%emt 0:00:17]} Red6 {[%emt 0:00:00]} 40. Qf7+ {[%emt 0:00:30]} Kc8 {[%emt 0:00:00]} 41. a5 {[%emt 0:00:04]} Kb8 {[%emt 0:00:22]} 42. e4 {[%emt 0:01:18]} R2d4 {[%emt 0:01:11]} 43. e5 {[%emt 0:00:31]} Rd8 {[%emt 0:00:16]} 44. e6 {[%emt 0:00:16]} Re4 {[%emt 0:00:44]} 45. a6 {[%emt 0:00:12]} 1-0

[Event "Turkish Club Cup 2019"]
[Site "Konya"]
[Date "2019.07.20"]
[Round "7"]
[White "Guder, Eyup Sabri"]
[Black "Subasi, Cagrican"]
[Result "1-0"]
[ECO "C14"]
[WhiteElo "1909"]
[BlackElo "1871"]
[Annotator "NA"]
[PlyCount "123"]
[EventDate "2019.07.16"]
[EventType "team-tourn"]
[EventCountry "TUR"]
[SourceTitle "playchess.com"]
[Source "ChessBase"]
[SourceQuality "1"]
[TimeControl "5400+30"]

1. d4 Nf6 2. Bg5 e6 3. e4 Be7 4. Nc3 d5 5. e5 Nfd7 6. h4 a6 7. Qg4 f5 8. Qf4 Nc6 {[%emt 0:28:00]} 9. O-O-O {[%emt 0:25:30]} Nb6 {[%emt 0:00:30]} 10. Nf3 {[%emt 0:00:30]} Bd7 {[%emt 0:00:30]} 11. g4 {[%emt 0:03:30]} h6 {[%emt 0:18:30]} 12. Bxe7 {[%emt 0:01:30]} Qxe7 {[%emt 0:00:30]} 13. gxf5 {[%emt 0:01:30]} exf5 {[%emt 0:00:00]} 14. Bd3 {[%emt 0:12:30]} Rf8 {[%emt 0:01:00]} 15. e6 {[%emt 0:09:30]} Bxe6 {[%emt 0:00:30]} 16. Rde1 {[%emt 0:03:30]} O-O-O {[%emt 0:01:30]} 17. Ne5 {[%emt 0:06:30]} Qd6 {[%emt 0:01:30]} 18. Rhg1 {[%emt 0:05:30]} Rd7 {[%emt 0:10:30]} 19. Ng6 {[%emt 0:11:20]} Qxf4+ {[%emt 0:00:30]} 20. Nxf4 {[%emt 0:00:02]} Bg8 {[%emt 0:00:30]} 21. Ng6 {[%emt 0:00:59]} Rf6 {[%emt 0:03:30]} 22. Re8+ {[%emt 0:02:33]} Rd8 {[%emt 0:00:30]} 23. Ne7+ {[%emt 0:01:01]} Nxe7 {[%emt 0:00:30]} 24. Rxe7 {[%emt 0:00:00]} g6 {[%emt 0:00:30]} 25. Rxg6 {[%emt 0:00:03]} Rxg6 {[%emt 0:02:30]} 26. Bxf5+ {[%emt 0:00:33]} Re6 {[%emt 0:00:30]} 27. Bxe6+ {[%emt 0:00:28]} Bxe6 {[%emt 0:00:30]} 28. Rxe6 {[%emt 0:00:30]} Rd6 {[%emt 0:00:00]} 29. Rxd6 {[%emt 0:01:42]} cxd6 {[%emt 0:00:00]} 30. b3 {[%emt 0:01:04]} Kd7 {[%emt 0:00:00]} 31. Kd2 {[%emt 0:00:17]} Ke6 {[%emt 0:00:00]} 32. Ke3 {[%emt 0:00:08]} Nc8 {[%emt 0:00:30]} 33. Kf4 {[%emt 0:02:45]} Ne7 {[%emt 0:00:30]} 34. Kg4 {[%emt 0:00:30]} Kf6 {[%emt 0:01:30]} 35. Ne2 {[%emt 0:00:54]} b5 {[%emt 0:01:30]} 36. c3 {[%emt 0:01:41]} a5 {[%emt 0:03:30]} 37. a3 {[%emt 0:01:33]} Ng6 {[%emt 0:02:30]} 38. Ng3 {[%emt 0:02:22]} Ne7 {[%emt 0:00:30]} 39. Nh5+ {[%emt 0:00:27]} Kf7 {[%emt 0:01:30]} 40. Nf4 {[%emt 0:00:19]} Kg7 {[%emt 0:03:30]} 41. Ne6+ {[%emt 0:03:29]} Kg6 {[%emt 0:00:30]} 42. h5+ {[%emt 0:00:31]} Kf7 {[%emt 0:00:30]} 43. Nc7 {[%emt 0:00:30]} b4 {[%emt 0:00:30]} 44. cxb4 {[%emt 0:00:38]} axb4 {[%emt 0:00:00]} 45. a4 {[%emt 0:00:19]} Nc6 {[%emt 0:00:00]} 46. Nxd5 {[%emt 0:00:26]} Na5 {[%emt 0:00:30]} 47. Nxb4 {[%emt 0:00:10]} Nxb3 {[%emt 0:00:30]} 48. d5 {[%emt 0:00:35]} Na5 {[%emt 0:00:30]} 49. Nc6 {[%emt 0:00:17]} Nc4 {[%emt 0:00:30]} 50. a5 {[%emt 0:00:13]} Ke8 {[%emt 0:00:30]} 51. a6 {[%emt 0:00:35]} Kd7 {[%emt 0:00:30]} 52. a7 {[%emt 0:00:15]} Nb6 {[%emt 0:00:00]} 53. f4 {[%emt 0:00:56]} Kc7 {[%emt 0:00:00]} 54. f5 {[%emt 0:00:30]} Kb7 {[%emt 0:00:00]} 55. f6 {[%emt 0:00:53]} Nxd5 {[%emt 0:00:00]} 56. f7 {[%emt 0:00:45]} Nf6+ {[%emt 0:00:30]} 57. Kf5 {[%emt 0:00:00]} Nh7 {[%emt 0:00:30]} 58. Kg6 {[%emt 0:00:08]} Nf8+ {[%emt 0:00:00]} 59. Kxh6 {[%emt 0:00:18]} d5 {[%emt 0:00:00]} 60. Kg7 {[%emt 0:00:16]} Ne6+ {[%emt 0:00:00]} 61. Kg8 {[%emt 0:00:00]} d4 {[%emt 0:00:00]} 62. Nxd4 {[%emt 0:00:00]} 1-0

[Event "Turkish Club Cup 2019"]
[Site "Konya"]
[Date "2019.07.20"]
[Round "7"]
[White "Emir, Emirhan"]
[Black "Saridag, Omer Melih"]
[Result "1/2-1/2"]
[ECO "D30"]
[WhiteElo "1904"]
[BlackElo "1820"]
[Annotator "NA"]
[PlyCount "88"]
[EventDate "2019.07.16"]
[EventType "team-tourn"]
[EventCountry "TUR"]
[SourceTitle "playchess.com"]
[Source "ChessBase"]
[SourceQuality "1"]
[TimeControl "5400+30"]

1. c4 e6 2. Nf3 d5 3. d4 a6 4. cxd5 exd5 5. Bf4 Bd6 6. Bg3 Nf6 7. e3 Qe7 8. Bd3 Nbd7 9. O-O b6 10. Qc2 Bb7 11. Nbd2 {[%emt 0:17:30]} O-O {[%emt 0:36:30]} 12. Bh4 {[%emt 0:02:30]} g6 {[%emt 0:11:30]} 13. Rfe1 {[%emt 0:00:30]} Qe6 {[%emt 0:03:30]} 14. h3 {[%emt 0:08:30]} Ne4 {[%emt 0:13:30]} 15. Ng5 {[%emt 0:18:30]} Nxg5 {[%emt 0:01:30]} 16. Bxg5 {[%emt 0:00:00]} Kg7 {[%emt 0:01:30]} 17. f4 {[%emt 0:02:00]} Bb4 {[%emt 0:06:30]} 18. f5 {[%emt 0:09:30]} Qc6 {[%emt 0:04:49]} 19. Qxc6 {[%emt 0:01:30]} Bxc6 {[%emt 0:00:30]} 20. Rec1 {[%emt 0:00:00]} h6 {[%emt 0:07:46]} 21. Rxc6 {[%emt 0:02:00]} hxg5 {[%emt 0:00:39]} 22. Nf3 {[%emt 0:00:30]} Bd6 {[%emt 0:01:02]} 23. fxg6 {[%emt 0:02:30]} fxg6 {[%emt 0:01:20]} 24. Nxg5 {[%emt 0:00:30]} Rae8 {[%emt 0:01:10]} 25. e4 {[%emt 0:00:00]} Nb8 {[%emt 0:01:01]} 26. Rc2 {[%emt 0:04:00]} Bf4 {[%emt 0:01:35]} 27. h4 {[%emt 0:00:00]} dxe4 {[%emt 0:01:40]} 28. Nxe4 {[%emt 0:01:00]} Re7 {[%emt 0:00:56]} 29. d5 {[%emt 0:08:30]} Rd8 {[%emt 0:01:38]} 30. Nc3 {[%emt 0:04:30]} Rh8 {[%emt 0:01:48]} 31. Re2 {[%emt 0:07:38]} Rxe2 {[%emt 0:00:54]} 32. Nxe2 {[%emt 0:00:14]} Be3+ {[%emt 0:00:10]} 33. Kh2 {[%emt 0:00:01]} Rxh4+ {[%emt 0:00:22]} 34. Kg3 {[%emt 0:00:02]} Rh5 {[%emt 0:02:20]} 35. Kf3 {[%emt 0:00:04]} Re5 {[%emt 0:00:39]} 36. Be4 {[%emt 0:00:43]} Bc5 {[%emt 0:01:16]} 37. Nf4 {[%emt 0:00:34]} Bd6 {[%emt 0:00:43]} 38. Ne6+ {[%emt 0:00:52]} Kf6 {[%emt 0:00:38]} 39. Rc1 {[%emt 0:03:28]} Nd7 {[%emt 0:00:58]} 40. g4 {[%emt 0:03:37]} Nc5 {[%emt 0:00:34]} 41. Nxc5 {[%emt 0:00:49]} Bxc5 {[%emt 0:00:08]} 42. b4 {[%emt 0:00:22]} Bd6 {[%emt 0:00:18]} 43. a3 {[%emt 0:00:18]} Re8 {[%emt 0:00:24]} 44. Rh1 {[%emt 0:00:50]} Kg7 {[%emt 0:00:12]} 1/2-1/2

[Event "Turkish Club Cup 2019"]
[Site "Konya"]
[Date "2019.07.20"]
[Round "7"]
[White "Inan, Canberk"]
[Black "Cakiroglu, Metin"]
[Result "1-0"]
[ECO "B36"]
[WhiteElo "1895"]
[BlackElo "1970"]
[Annotator "NA"]
[PlyCount "95"]
[EventDate "2019.07.16"]
[EventType "team-tourn"]
[EventCountry "TUR"]
[SourceTitle "playchess.com"]
[Source "ChessBase"]
[SourceQuality "1"]
[TimeControl "5400+30"]

1. e4 c5 2. Nf3 g6 3. d4 cxd4 4. Nxd4 Nc6 5. c4 Nf6 6. Nc3 d6 7. Be2 Nxd4 8. Qxd4 Bg7 9. b3 O-O 10. Bb2 Qa5 11. O-O Be6 12. Qd3 {[%emt 0:20:00]} Nd7 {[%emt 0:35:00]} 13. Rab1 {[%emt 0:02:30]} Rfc8 {[%emt 0:03:30]} 14. Nd5 {[%emt 0:23:30]} Bxd5 {[%emt 0:00:30]} 15. exd5 {[%emt 0:02:30]} Qxa2 {[%emt 0:03:30]} 16. Bxg7 {[%emt 0:00:30]} Kxg7 {[%emt 0:00:00]} 17. Bg4 {[%emt 0:00:30]} Ne5 {[%emt 0:27:00]} 18. Qc3 {[%emt 0:00:30]} Kg8 {[%emt 0:02:30]} 19. Ra1 {[%emt 0:01:30]} Qxa1 {[%emt 0:04:30]} 20. Rxa1 {[%emt 0:00:30]} Nxg4 {[%emt 0:00:30]} 21. Qd4 {[%emt 0:00:00]} Ne5 {[%emt 0:00:00]} 22. Rxa7 {[%emt 0:01:00]} Rxa7 {[%emt 0:00:00]} 23. Qxa7 {[%emt 0:00:00]} b5 {[%emt 0:00:30]} 24. Qb7 {[%emt 0:13:00]} Rc5 {[%emt 0:02:30]} 25. Qxe7 {[%emt 0:00:00]} bxc4 {[%emt 0:00:30]} 26. Qxd6 {[%emt 0:01:00]} Nd3 {[%emt 0:00:30]} 27. bxc4 {[%emt 0:00:30]} Rxc4 {[%emt 0:00:00]} 28. h3 {[%emt 0:02:30]} h5 {[%emt 0:06:23]} 29. Qf6 {[%emt 0:12:30]} Nf4 {[%emt 0:02:01]} 30. g3 {[%emt 0:01:30]} Rc1+ {[%emt 0:03:43]} 31. Kh2 {[%emt 0:00:00]} Rd1 {[%emt 0:00:00]} 32. Qxf4 {[%emt 0:00:00]} Rxd5 {[%emt 0:00:03]} 33. Kg2 {[%emt 0:02:30]} Kg7 {[%emt 0:02:26]} 34. Qc4 {[%emt 0:00:30]} Rd6 {[%emt 0:00:40]} 35. Qc3+ {[%emt 0:00:46]} Kg8 {[%emt 0:00:51]} 36. f4 {[%emt 0:00:14]} Rd5 {[%emt 0:01:07]} 37. Kf3 {[%emt 0:00:30]} Rf5 {[%emt 0:01:39]} 38. g4 {[%emt 0:02:30]} hxg4+ {[%emt 0:00:30]} 39. hxg4 {[%emt 0:00:00]} Rd5 {[%emt 0:00:00]} 40. Ke4 {[%emt 0:00:44]} Rd8 {[%emt 0:00:50]} 41. f5 {[%emt 0:00:51]} gxf5+ {[%emt 0:00:45]} 42. gxf5 {[%emt 0:01:38]} Rd6 {[%emt 0:01:11]} 43. Kf4 {[%emt 0:01:03]} Kf8 {[%emt 0:01:01]} 44. Qc5 {[%emt 0:00:39]} Ke7 {[%emt 0:00:30]} 45. Kg5 {[%emt 0:00:00]} f6+ {[%emt 0:00:26]} 46. Kh6 {[%emt 0:00:25]} Kd7 {[%emt 0:00:50]} 47. Qxd6+ {[%emt 0:00:30]} Kxd6 {[%emt 0:00:30]} 48. Kg7 {[%emt 0:00:00]} 1-0

[Event "Turkish Club Cup 2019"]
[Site "Konya"]
[Date "2019.07.20"]
[Round "7"]
[White "Karahan, Anil"]
[Black "Basaran, Alp"]
[Result "1-0"]
[ECO "E62"]
[WhiteElo "1889"]
[BlackElo "1857"]
[Annotator "NA"]
[PlyCount "111"]
[EventDate "2019.07.16"]
[EventType "team-tourn"]
[EventCountry "TUR"]
[SourceTitle "playchess.com"]
[Source "ChessBase"]
[SourceQuality "1"]
[TimeControl "5400+30"]

1. d4 {[%emt 0:00:30]} Nf6 {[%emt 0:00:30]} 2. c4 {[%emt 0:00:00]} g6 {[%emt 0:01:30]} 3. Nf3 {[%emt 0:00:00]} Bg7 {[%emt 0:00:30]} 4. g3 {[%emt 0:00:30]} O-O {[%emt 0:00:30]} 5. Bg2 {[%emt 0:00:00]} d6 {[%emt 0:00:30]} 6. O-O {[%emt 0:00:00]} c6 {[%emt 0:01:30]} 7. Nc3 {[%emt 0:00:30]} Qa5 {[%emt 0:05:30]} 8. e4 {[%emt 0:02:30]} e5 {[%emt 0:03:30]} 9. d5 {[%emt 0:01:30]} cxd5 {[%emt 0:01:30]} 10. cxd5 {[%emt 0:00:30]} Bd7 {[%emt 0:06:30]} 11. Nd2 {[%emt 0:08:30]} Rc8 {[%emt 0:08:30]} 12. Nb3 {[%emt 0:10:30]} Qd8 {[%emt 0:02:30]} 13. h3 {[%emt 0:04:30]} Na6 {[%emt 0:08:30]} 14. a4 {[%emt 0:08:30]} Qf8 {[%emt 0:09:30]} 15. Bg5 {[%emt 0:05:30]} h6 {[%emt 0:02:30]} 16. Be3 {[%emt 0:03:30]} Ne8 {[%emt 0:02:30]} 17. Qd2 {[%emt 0:10:30]} Kh7 {[%emt 0:00:00]} 18. Nc1 {[%emt 0:00:30]} h5 {[%emt 0:10:00]} 19. Ra3 {[%emt 0:06:30]} Nc5 {[%emt 0:07:30]} 20. b4 {[%emt 0:01:30]} Na6 {[%emt 0:00:00]} 21. Nd3 {[%emt 0:02:30]} Qe7 {[%emt 0:07:27]} 22. Rfa1 {[%emt 0:03:30]} b6 {[%emt 0:06:06]} 23. Rb1 {[%emt 0:02:30]} f5 {[%emt 0:05:04]} 24. Bf1 {[%emt 0:00:30]} Nac7 {[%emt 0:00:48]} 25. Ne1 {[%emt 0:08:47]} Bf6 {[%emt 0:02:35]} 26. b5 {[%emt 0:01:22]} g5 {[%emt 0:01:45]} 27. exf5 {[%emt 0:00:08]} Bxf5 {[%emt 0:01:06]} 28. Rb4 {[%emt 0:05:13]} Ng7 {[%emt 0:01:40]} 29. a5 {[%emt 0:03:26]} g4 {[%emt 0:01:23]} 30. h4 {[%emt 0:00:10]} Bg6 {[%emt 0:00:32]} 31. Ne4 {[%emt 0:02:00]} Nf5 {[%emt 0:00:54]} 32. Ng2 {[%emt 0:02:29]} Nxe3 {[%emt 0:00:34]} 33. Nxf6+ {[%emt 0:00:47]} Qxf6 {[%emt 0:00:06]} 34. Nxe3 {[%emt 0:00:00]} Ne8 {[%emt 0:00:14]} 35. axb6 {[%emt 0:01:26]} axb6 {[%emt 0:00:35]} 36. Rba4 {[%emt 0:00:00]} Rxa4 {[%emt 0:00:13]} 37. Rxa4 {[%emt 0:00:08]} Rc7 {[%emt 0:00:30]} 38. Ra6 {[%emt 0:00:30]} Rb7 {[%emt 0:00:30]} 39. Qa2 {[%emt 0:00:30]} Qf7 {[%emt 0:00:30]} 40. Ra8 {[%emt 0:00:30]} Rc7 {[%emt 0:00:30]} 41. Qa3 {[%emt 0:03:26]} Nf6 {[%emt 0:00:59]} 42. Rb8 {[%emt 0:00:50]} Ne4 {[%emt 0:00:10]} 43. Qb2 {[%emt 0:00:47]} Rb7 {[%emt 0:00:33]} 44. Rxb7 {[%emt 0:01:19]} Qxb7 {[%emt 0:00:05]} 45. Bd3 {[%emt 0:01:30]} Nf6 {[%emt 0:01:59]} 46. Bxg6+ {[%emt 0:00:39]} Kxg6 {[%emt 0:00:17]} 47. Qc2+ {[%emt 0:00:05]} e4 {[%emt 0:00:34]} 48. Qc6 {[%emt 0:00:36]} Qa7 {[%emt 0:00:57]} 49. Qxd6 {[%emt 0:00:33]} Qa1+ {[%emt 0:00:21]} 50. Kg2 {[%emt 0:00:21]} Qd4 {[%emt 0:00:24]} 51. Qe6 {[%emt 0:01:01]} Qc5 {[%emt 0:00:14]} 52. d6 {[%emt 0:01:09]} Qc3 {[%emt 0:01:55]} 53. d7 {[%emt 0:00:30]} Qd3 {[%emt 0:00:11]} 54. Qe8+ {[%emt 0:00:37]} Nxe8 {[%emt 0:00:40]} 55. dxe8=Q+ {[%emt 0:00:02]} Kf6 {[%emt 0:00:21]} 56. Qxh5 {[%emt 0:00:41]} 1-0